[Event "Early-Titled-Tuesday-Blitz-April-16-2024"]
[Site "Chess.com"]
[Date "2024.04.16"]
[Round "6"]
[White "AsselLesbekova"]
[Black "Alonmindlin"]
[Result "1-0"]
[WhiteElo "2435"]
[BlackElo "2668"]
[TimeControl "180+1"]
[EndTime "9:08:11 PDT"]
[Termination "AsselLesbekova won by resignation"]

1. e4 {[%clk 0:03:00.9]} 1... c5 {[%clk 0:02:57.2]} 2. Nf3 {[%clk 0:03:00.9]}
2... Nc6 {[%clk 0:02:57.3]} 3. Bb5 {[%clk 0:03:01.2]} 3... g6 {[%clk 0:02:57.1]}
4. O-O {[%clk 0:02:58.5]} 4... Bg7 {[%clk 0:02:57.4]} 5. Re1 {[%clk 0:02:58.5]}
5... Nf6 {[%clk 0:02:55]} 6. c3 {[%clk 0:02:58.8]} 6... O-O {[%clk 0:02:53]} 7.
d4 {[%clk 0:02:58.6]} 7... cxd4 {[%clk 0:02:53.2]} 8. cxd4 {[%clk 0:02:59.5]}
8... d5 {[%clk 0:02:53.7]} 9. e5 {[%clk 0:02:58.4]} 9... Ne4 {[%clk 0:02:54.2]}
10. Bd3 {[%clk 0:02:57.6]} 10... Nb4 {[%clk 0:02:44.6]} 11. Bxe4 {[%clk
0:02:50.1]} 11... dxe4 {[%clk 0:02:43.6]} 12. Rxe4 {[%clk 0:02:51]} 12... Bf5
{[%clk 0:02:42.3]} 13. Re2 {[%clk 0:02:51.1]} 13... Nxa2 {[%clk 0:02:33.3]} 14.
Bd2 {[%clk 0:02:37.9]} 14... Qd5 {[%clk 0:02:31.7]} 15. b3 {[%clk 0:02:29.1]}
15... Bg4 {[%clk 0:01:59.2]} 16. Rxa2 {[%clk 0:02:13.5]} 16... Bxf3 {[%clk
0:01:59]} 17. gxf3 {[%clk 0:02:13.6]} 17... Qxf3 {[%clk 0:01:59.9]} 18. Re1
{[%clk 0:02:07.5]} 18... Qf5 {[%clk 0:01:57.1]} 19. Be3 {[%clk 0:01:46.2]} 19...
Rfd8 {[%clk 0:01:54.8]} 20. Qe2 {[%clk 0:01:45.5]} 20... Rac8 {[%clk 0:01:47.9]}
21. Na3 {[%clk 0:01:39.6]} 21... Rc3 {[%clk 0:01:37.4]} 22. Rc1 {[%clk
0:01:27.1]} 22... Rxc1+ {[%clk 0:01:34.2]} 23. Bxc1 {[%clk 0:01:28]} 23... Rxd4
{[%clk 0:01:34.5]} 24. Rd2 {[%clk 0:01:24.4]} 24... Rg4+ {[%clk 0:01:33.4]} 25.
Kf1 {[%clk 0:01:20]} 25... Bxe5 {[%clk 0:01:33]} 26. Bb2 {[%clk 0:01:11.8]}
26... Re4 {[%clk 0:01:30.5]} 27. Rd8+ {[%clk 0:01:08.5]} 27... Kg7 {[%clk
0:01:29.5]} 28. Bxe5+ {[%clk 0:01:08]} 28... Rxe5 {[%clk 0:01:30.4]} 29. Qd2
{[%clk 0:00:48.1]} 29... f6 {[%clk 0:01:23.4]} 30. Rd3 {[%clk 0:00:42.7]} 30...
Ra5 {[%clk 0:01:17]} 31. Nc2 {[%clk 0:00:21.7]} 31... Ra2 {[%clk 0:01:15.7]} 32.
Rc3 {[%clk 0:00:22.3]} 32... b5 {[%clk 0:01:12.8]} 33. Qe2 {[%clk 0:00:21.4]}
33... Kf7 {[%clk 0:01:09.9]} 34. Rc7 {[%clk 0:00:21.4]} 34... Qe6 {[%clk
0:01:03.9]} 35. Qxe6+ {[%clk 0:00:20.4]} 35... Kxe6 {[%clk 0:01:04.8]} 36. Nd4+
{[%clk 0:00:20.2]} 36... Kd5 {[%clk 0:01:01.2]} 37. Nxb5 {[%clk 0:00:19.1]}
37... Rb2 {[%clk 0:01:01]} 38. Nxa7 {[%clk 0:00:17.3]} 38... e5 {[%clk 0:00:58]}
39. Rb7 {[%clk 0:00:14.2]} 39... e4 {[%clk 0:00:56]} 40. b4 {[%clk 0:00:14.4]}
40... f5 {[%clk 0:00:55.9]} 41. b5 {[%clk 0:00:13.8]} 41... f4 {[%clk
0:00:56.6]} 42. Rxh7 {[%clk 0:00:13.5]} 42... e3 {[%clk 0:00:57.5]} 43. fxe3
{[%clk 0:00:12.5]} 43... fxe3 {[%clk 0:00:58.4]} 44. h4 {[%clk 0:00:09.7]} 44...
Ke4 {[%clk 0:00:58.3]} 45. Re7+ {[%clk 0:00:09.2]} 45... Kf4 {[%clk 0:00:58.6]}
46. Rf7+ {[%clk 0:00:09.6]} 46... Kg4 {[%clk 0:00:58.8]} 47. Rf6 {[%clk
0:00:08.3]} 47... Kxh4 {[%clk 0:00:58.6]} 48. Rxg6 {[%clk 0:00:07.7]} 48... Kh5
{[%clk 0:00:58.9]} 49. Re6 {[%clk 0:00:07.5]} 49... Rb3 {[%clk 0:00:57.9]} 50.
Ke2 {[%clk 0:00:07.5]} 50... Kg4 {[%clk 0:00:58.5]} 51. Rxe3 {[%clk 0:00:07.8]}
51... Rb2+ {[%clk 0:00:59]} 52. Kd3 {[%clk 0:00:08.3]} 52... Kf5 {[%clk
0:00:59.9]} 53. Kc4 {[%clk 0:00:08.1]} 53... Ra2 {[%clk 0:00:59]} 54. b6 {[%clk
0:00:07.6]} 54... Kf4 {[%clk 0:00:58.4]} 55. Rb3 {[%clk 0:00:07.6]} 1-0

[Event "Early-Titled-Tuesday-Blitz-April-16-2024"]
[Site "Chess.com"]
[Date "2024.04.16"]
[Round "6"]
[White "FairChess_on_YouTube"]
[Black "superchess02"]
[Result "1-0"]
[WhiteElo "3095"]
[BlackElo "2902"]
[TimeControl "180+1"]
[EndTime "9:08:12 PDT"]
[Termination "FairChess_on_YouTube won on time"]

1. c4 {[%clk 0:03:00.9]} 1... Nf6 {[%clk 0:02:59.3]} 2. Nc3 {[%clk 0:03:00.8]}
2... e5 {[%clk 0:02:58.4]} 3. Nf3 {[%clk 0:02:59.8]} 3... Nc6 {[%clk 0:02:58.8]}
4. e4 {[%clk 0:02:59.5]} 4... Bb4 {[%clk 0:02:56.5]} 5. d3 {[%clk 0:02:59.6]}
5... d6 {[%clk 0:02:56.6]} 6. a3 {[%clk 0:02:59.8]} 6... Bc5 {[%clk 0:02:53.9]}
7. b4 {[%clk 0:02:59.7]} 7... Bb6 {[%clk 0:02:54.3]} 8. Na4 {[%clk 0:02:59.5]}
8... Bg4 {[%clk 0:02:49]} 9. Nxb6 {[%clk 0:02:57.4]} 9... axb6 {[%clk
0:02:49.9]} 10. Bb2 {[%clk 0:02:57.9]} 10... O-O {[%clk 0:02:43.2]} 11. Be2
{[%clk 0:02:56.4]} 11... Nh5 {[%clk 0:02:39.8]} 12. g3 {[%clk 0:02:15.1]} 12...
Nf6 {[%clk 0:02:22.4]} 13. h3 {[%clk 0:02:09.9]} 13... Be6 {[%clk 0:02:16]} 14.
Kf1 {[%clk 0:02:08.9]} 14... Ne7 {[%clk 0:02:10.2]} 15. Kg2 {[%clk 0:01:58.8]}
15... Qd7 {[%clk 0:02:05.6]} 16. d4 {[%clk 0:01:50.5]} 16... Nxe4 {[%clk
0:01:46.6]} 17. dxe5 {[%clk 0:01:49.1]} 17... d5 {[%clk 0:01:45.2]} 18. Rc1
{[%clk 0:01:33.9]} 18... c5 {[%clk 0:01:42.7]} 19. bxc5 {[%clk 0:01:14.9]} 19...
bxc5 {[%clk 0:01:41.2]} 20. Bd3 {[%clk 0:01:15.1]} 20... Qc6 {[%clk 0:01:34.7]}
21. Qe2 {[%clk 0:01:13.1]} 21... Ra4 {[%clk 0:01:27.1]} 22. Rhe1 {[%clk
0:01:11.7]} 22... b5 {[%clk 0:00:52.1]} 23. cxd5 {[%clk 0:00:53.3]} 23... Bxd5
{[%clk 0:00:53]} 24. Bxb5 {[%clk 0:00:53.5]} 24... Qb7 {[%clk 0:00:52.1]} 25.
Bxa4 {[%clk 0:00:53.3]} 25... Ng5 {[%clk 0:00:51.3]} 26. Rc3 {[%clk 0:00:52.9]}
26... Nxf3 {[%clk 0:00:17.6]} 27. Rxf3 {[%clk 0:00:53.8]} 27... Bxf3+ {[%clk
0:00:18]} 28. Qxf3 {[%clk 0:00:54.4]} 28... Qxb2 {[%clk 0:00:18.5]} 29. Bb3
{[%clk 0:00:43.5]} 29... Ng6 {[%clk 0:00:17.4]} 30. e6 {[%clk 0:00:43.6]} 30...
fxe6 {[%clk 0:00:17.3]} 31. Rxe6 {[%clk 0:00:44.3]} 31... Kh8 {[%clk 0:00:15.1]}
32. Qe3 {[%clk 0:00:43.4]} 32... Qxa3 {[%clk 0:00:12.9]} 33. h4 {[%clk
0:00:32.1]} 33... Qa8+ {[%clk 0:00:09.2]} 34. f3 {[%clk 0:00:27.9]} 34... c4
{[%clk 0:00:04.1]} 35. Bxc4 {[%clk 0:00:25.9]} 35... Qc8 {[%clk 0:00:04.8]} 36.
Bd3 {[%clk 0:00:21.2]} 36... Qd8 {[%clk 0:00:02.2]} 37. h5 {[%clk 0:00:19]} 1-0

[Event "Early-Titled-Tuesday-Blitz-April-16-2024"]
[Site "Chess.com"]
[Date "2024.04.16"]
[Round "6"]
[White "Juicy_Fork"]
[Black "David_George21"]
[Result "0-1"]
[WhiteElo "2489"]
[BlackElo "2319"]
[TimeControl "180+1"]
[EndTime "9:08:15 PDT"]
[Termination "David_George21 won on time"]

1. e4 {[%clk 0:03:00.9]} 1... c5 {[%clk 0:02:56.8]} 2. Nf3 {[%clk 0:03:00.9]}
2... d6 {[%clk 0:02:56.8]} 3. d4 {[%clk 0:03:01.6]} 3... cxd4 {[%clk 0:02:57.7]}
4. Nxd4 {[%clk 0:03:02.5]} 4... Nf6 {[%clk 0:02:57.8]} 5. Nc3 {[%clk 0:03:03.1]}
5... Nc6 {[%clk 0:02:58.4]} 6. Be3 {[%clk 0:03:03.1]} 6... Ng4 {[%clk
0:02:57.9]} 7. Bg5 {[%clk 0:02:59.2]} 7... Qb6 {[%clk 0:02:57.1]} 8. Be3 {[%clk
0:01:43.1]} 8... Nxe3 {[%clk 0:02:43.8]} 9. fxe3 {[%clk 0:01:44]} 9... Qxb2
{[%clk 0:02:43.8]} 10. Nd5 {[%clk 0:01:39.8]} 10... Kd8 {[%clk 0:02:24.8]} 11.
Be2 {[%clk 0:01:34.8]} 11... e6 {[%clk 0:02:24.6]} 12. Nxc6+ {[%clk 0:01:31.2]}
12... bxc6 {[%clk 0:02:24.1]} 13. Nf4 {[%clk 0:01:31.9]} 13... Qc3+ {[%clk
0:02:14]} 14. Kf2 {[%clk 0:01:31.7]} 14... Be7 {[%clk 0:01:53.3]} 15. Rb1 {[%clk
0:01:29.6]} 15... g5 {[%clk 0:01:38.1]} 16. Nd3 {[%clk 0:01:22.5]} 16... Kc7
{[%clk 0:01:29.5]} 17. Rf1 {[%clk 0:01:20.2]} 17... f6 {[%clk 0:01:20.9]} 18.
Rb4 {[%clk 0:00:44.4]} 18... Ba6 {[%clk 0:01:00.4]} 19. Rb3 {[%clk 0:00:37.8]}
19... Qa5 {[%clk 0:00:49.3]} 20. Kg1 {[%clk 0:00:25.9]} 20... Bc4 {[%clk
0:00:43.4]} 21. Rb1 {[%clk 0:00:17]} 21... Rab8 {[%clk 0:00:38.9]} 22. Rxb8
{[%clk 0:00:10.4]} 22... Rxb8 {[%clk 0:00:39.8]} 23. Bg4 {[%clk 0:00:10.9]}
23... Qb6 {[%clk 0:00:33.4]} 24. Qf3 {[%clk 0:00:10]} 24... Bxa2 {[%clk
0:00:19.9]} 25. Qh3 {[%clk 0:00:09.9]} 25... Kd7 {[%clk 0:00:11.6]} 26. Re1
{[%clk 0:00:05]} 26... Rh8 {[%clk 0:00:09.6]} 27. Qh6 {[%clk 0:00:04]} 27... Bc4
{[%clk 0:00:08.2]} 28. Nf2 {[%clk 0:00:02.7]} 28... Qb4 {[%clk 0:00:07.5]} 29.
Rd1 {[%clk 0:00:02.5]} 29... Qc3 {[%clk 0:00:06.7]} 30. Qg7 {[%clk 0:00:02.7]}
30... Rd8 {[%clk 0:00:06.2]} 31. e5 {[%clk 0:00:03.1]} 31... fxe5 {[%clk
0:00:05.8]} 32. Qxh7 {[%clk 0:00:02.7]} 32... Qxe3 {[%clk 0:00:05.7]} 33. h3
{[%clk 0:00:02.1]} 33... Rf8 {[%clk 0:00:03.6]} 0-1

[Event "Early-Titled-Tuesday-Blitz-April-16-2024"]
[Site "Chess.com"]
[Date "2024.04.16"]
[Round "6"]
[White "BashirliSaadat"]
[Black "DonJuanEGenaro"]
[Result "1-0"]
[WhiteElo "2341"]
[BlackElo "2003"]
[TimeControl "180+1"]
[EndTime "9:08:16 PDT"]
[Termination "BashirliSaadat won on time"]

1. d4 {[%clk 0:03:00.9]} 1... Nf6 {[%clk 0:02:57.2]} 2. e3 {[%clk 0:03:01.4]}
2... d6 {[%clk 0:02:55.8]} 3. f4 {[%clk 0:03:01.6]} 3... g6 {[%clk 0:02:55.6]}
4. Bd3 {[%clk 0:03:01.7]} 4... Bg7 {[%clk 0:02:55.7]} 5. Nf3 {[%clk 0:03:02.2]}
5... Bg4 {[%clk 0:02:50.3]} 6. O-O {[%clk 0:03:02.4]} 6... Nbd7 {[%clk
0:02:50.1]} 7. Nbd2 {[%clk 0:03:02.4]} 7... e5 {[%clk 0:02:45.6]} 8. fxe5 {[%clk
0:02:55.8]} 8... dxe5 {[%clk 0:02:44.8]} 9. Be2 {[%clk 0:02:49.9]} 9... exd4
{[%clk 0:02:25.6]} 10. exd4 {[%clk 0:02:49.2]} 10... O-O {[%clk 0:02:24.7]} 11.
c3 {[%clk 0:02:49]} 11... c5 {[%clk 0:02:24]} 12. Nb3 {[%clk 0:02:42.8]} 12...
cxd4 {[%clk 0:02:17.2]} 13. Nbxd4 {[%clk 0:02:43.7]} 13... Re8 {[%clk
0:02:12.9]} 14. h3 {[%clk 0:02:41.6]} 14... Bxf3 {[%clk 0:02:05.7]} 15. Bxf3
{[%clk 0:02:39.9]} 15... Qb6 {[%clk 0:02:05.1]} 16. Kh1 {[%clk 0:02:36]} 16...
Rad8 {[%clk 0:02:04.5]} 17. Qc2 {[%clk 0:02:27.3]} 17... Ne5 {[%clk 0:01:58.8]}
18. Bg5 {[%clk 0:02:23.6]} 18... Nxf3 {[%clk 0:01:47.8]} 19. Rxf3 {[%clk
0:02:19]} 19... h6 {[%clk 0:01:44]} 20. Bh4 {[%clk 0:02:14.4]} 20... Rd7 {[%clk
0:01:32.8]} 21. Raf1 {[%clk 0:02:09]} 21... g5 {[%clk 0:01:31.9]} 22. Bf2 {[%clk
0:02:05.4]} 22... Ne4 {[%clk 0:01:26.3]} 23. Bg1 {[%clk 0:02:00.4]} 23... Qg6
{[%clk 0:01:19.1]} 24. Qa4 {[%clk 0:01:42.4]} 24... Red8 {[%clk 0:00:58.6]} 25.
Nb3 {[%clk 0:01:19.9]} 25... Be5 {[%clk 0:00:53]} 26. Bh2 {[%clk 0:01:09.6]}
26... Bxh2 {[%clk 0:00:50.2]} 27. Kxh2 {[%clk 0:01:10.5]} 27... Qd6+ {[%clk
0:00:49.6]} 28. Kg1 {[%clk 0:01:07.8]} 28... Qb6+ {[%clk 0:00:48.5]} 29. Kh1
{[%clk 0:01:03.8]} 29... Rd1 {[%clk 0:00:48.1]} 30. Qxe4 {[%clk 0:01:01]} 30...
Qb5 {[%clk 0:00:24]} 31. c4 {[%clk 0:00:53.4]} 31... Qd7 {[%clk 0:00:20.2]} 32.
Qe2 {[%clk 0:00:45.5]} 32... Rxf1+ {[%clk 0:00:16]} 33. Rxf1 {[%clk 0:00:46.4]}
33... Re8 {[%clk 0:00:15.2]} 34. Qf3 {[%clk 0:00:45]} 34... b6 {[%clk
0:00:11.8]} 35. Rd1 {[%clk 0:00:38.4]} 35... Qe6 {[%clk 0:00:10.2]} 36. Nd4
{[%clk 0:00:35.3]} 36... Qxc4 {[%clk 0:00:09.7]} 37. Nf5 {[%clk 0:00:34.1]}
37... Qe6 {[%clk 0:00:05.3]} 38. b3 {[%clk 0:00:27.1]} 38... Kh7 {[%clk
0:00:02.4]} 39. Qd3 {[%clk 0:00:26.6]} 39... Qe4 {[%clk 0:00:02.2]} 40. Qxe4
{[%clk 0:00:24.5]} 40... Rxe4 {[%clk 0:00:02.1]} 41. Rd7 {[%clk 0:00:24]} 41...
Kg6 {[%clk 0:00:02.2]} 42. Ng3 {[%clk 0:00:22.4]} 1-0

[Event "Early-Titled-Tuesday-Blitz-April-16-2024"]
[Site "Chess.com"]
[Date "2024.04.16"]
[Round "6"]
[White "2Coaches1Profile"]
[Black "tsaruk_maks"]
[Result "1/2-1/2"]
[WhiteElo "2555"]
[BlackElo "2719"]
[TimeControl "180+1"]
[EndTime "9:08:20 PDT"]
[Termination "Game drawn by repetition"]

1. d4 {[%clk 0:03:00.9]} 1... Nf6 {[%clk 0:02:59]} 2. Bg5 {[%clk 0:02:59.5]}
2... e6 {[%clk 0:02:59.9]} 3. e4 {[%clk 0:02:50.5]} 3... h6 {[%clk 0:03:00.3]}
4. Bxf6 {[%clk 0:02:50.6]} 4... Qxf6 {[%clk 0:03:01.2]} 5. c3 {[%clk 0:02:50.4]}
5... d6 {[%clk 0:02:58.8]} 6. Bd3 {[%clk 0:02:50.3]} 6... e5 {[%clk 0:02:55.5]}
7. Ne2 {[%clk 0:02:50]} 7... Nc6 {[%clk 0:02:55.7]} 8. O-O {[%clk 0:02:47.2]}
8... Bd7 {[%clk 0:02:50.7]} 9. d5 {[%clk 0:02:43.7]} 9... Ne7 {[%clk 0:02:48.5]}
10. Nd2 {[%clk 0:02:42.2]} 10... g5 {[%clk 0:02:47.3]} 11. Nc4 {[%clk
0:02:41.5]} 11... h5 {[%clk 0:02:40.7]} 12. Ne3 {[%clk 0:02:38.7]} 12... h4
{[%clk 0:02:33]} 13. f3 {[%clk 0:02:33.4]} 13... O-O-O {[%clk 0:02:25.2]} 14. c4
{[%clk 0:02:27]} 14... Ng6 {[%clk 0:02:24.3]} 15. b4 {[%clk 0:02:19.7]} 15...
Nf4 {[%clk 0:02:23.7]} 16. a4 {[%clk 0:02:11.3]} 16... Rg8 {[%clk 0:02:14.5]}
17. Ng4 {[%clk 0:01:53.4]} 17... Qg6 {[%clk 0:01:53.4]} 18. a5 {[%clk 0:01:48]}
18... Nxd3 {[%clk 0:01:53.4]} 19. Qxd3 {[%clk 0:01:47.2]} 19... f5 {[%clk
0:01:54.3]} 20. Ne3 {[%clk 0:01:40.2]} 20... Bh6 {[%clk 0:00:44.9]} 21. exf5
{[%clk 0:01:08.7]} 21... Qh7 {[%clk 0:00:37.1]} 22. b5 {[%clk 0:00:52]} 22... g4
{[%clk 0:00:36.7]} 23. b6 {[%clk 0:00:33.1]} 23... a6 {[%clk 0:00:28.5]} 24.
bxc7 {[%clk 0:00:32.1]} 24... Rdf8 {[%clk 0:00:29.2]} 25. Rab1 {[%clk
0:00:26.8]} 25... Bxf5 {[%clk 0:00:08.3]} 26. Nxf5 {[%clk 0:00:26.1]} 26... Rxf5
{[%clk 0:00:07.6]} 27. c5 {[%clk 0:00:16.9]} 27... gxf3 {[%clk 0:00:04.1]} 28.
Rxf3 {[%clk 0:00:12.1]} 28... e4 {[%clk 0:00:03.4]} 29. Qxe4 {[%clk 0:00:06.1]}
29... Rxg2+ {[%clk 0:00:04]} 30. Kh1 {[%clk 0:00:06.6]} 30... Rgg5 {[%clk
0:00:01.5]} 31. Qe8+ {[%clk 0:00:06.1]} 31... Kxc7 {[%clk 0:00:02.1]} 32. cxd6+
{[%clk 0:00:06.4]} 32... Kxd6 {[%clk 0:00:03]} 33. Qe6+ {[%clk 0:00:06.4]} 33...
Kc7 {[%clk 0:00:02.9]} 34. Rc3+ {[%clk 0:00:06.3]} 34... Kb8 {[%clk 0:00:02]}
35. Qc8+ {[%clk 0:00:05.3]} 35... Ka7 {[%clk 0:00:02.5]} 36. Qc5+ {[%clk
0:00:05.5]} 36... Kb8 {[%clk 0:00:03]} 37. Qc8+ {[%clk 0:00:01.9]} 37... Ka7
{[%clk 0:00:03.5]} 38. Qc5+ {[%clk 0:00:01.9]} 38... Kb8 {[%clk 0:00:04]} 39.
Qc8+ {[%clk 0:00:02]} 1/2-1/2

[Event "Early-Titled-Tuesday-Blitz-April-16-2024"]
[Site "Chess.com"]
[Date "2024.04.16"]
[Round "6"]
[White "albi1999"]
[Black "Cheer_Down"]
[Result "1-0"]
[WhiteElo "2641"]
[BlackElo "2494"]
[TimeControl "180+1"]
[EndTime "9:08:20 PDT"]
[Termination "albi1999 won by resignation"]

1. f4 {[%clk 0:03:00.9]} 1... d5 {[%clk 0:02:49.4]} 2. Nf3 {[%clk 0:03:00.7]}
2... Bg4 {[%clk 0:02:47.3]} 3. e3 {[%clk 0:03:00.1]} 3... Nd7 {[%clk 0:02:45.8]}
4. h3 {[%clk 0:03:00.1]} 4... Bxf3 {[%clk 0:02:45.5]} 5. Qxf3 {[%clk 0:03:01]}
5... c6 {[%clk 0:02:45.6]} 6. d4 {[%clk 0:03:01.1]} 6... e6 {[%clk 0:02:38.6]}
7. Bd3 {[%clk 0:03:01.1]} 7... Ngf6 {[%clk 0:02:25.7]} 8. O-O {[%clk 0:03:00.7]}
8... Be7 {[%clk 0:02:23.3]} 9. Nd2 {[%clk 0:03:01.2]} 9... c5 {[%clk 0:02:22.7]}
10. c3 {[%clk 0:03:01.7]} 10... a6 {[%clk 0:02:19.3]} 11. g4 {[%clk 0:03:00.4]}
11... h6 {[%clk 0:02:18.7]} 12. Qg2 {[%clk 0:02:59.9]} 12... g6 {[%clk
0:02:16.4]} 13. Nf3 {[%clk 0:02:53.4]} 13... Ne4 {[%clk 0:02:01.7]} 14. Ne5
{[%clk 0:02:47.5]} 14... Nxe5 {[%clk 0:01:57.5]} 15. fxe5 {[%clk 0:02:39]} 15...
h5 {[%clk 0:01:30]} 16. Bxe4 {[%clk 0:02:33.7]} 16... dxe4 {[%clk 0:01:30.2]}
17. Qxe4 {[%clk 0:02:34.6]} 17... hxg4 {[%clk 0:01:28.5]} 18. hxg4 {[%clk
0:02:34.6]} 18... Qd5 {[%clk 0:01:24.6]} 19. Qxd5 {[%clk 0:02:33.3]} 19... exd5
{[%clk 0:01:25.5]} 20. Kg2 {[%clk 0:02:33]} 20... Kd7 {[%clk 0:01:11.6]} 21. Bd2
{[%clk 0:02:26.9]} 21... Rh4 {[%clk 0:01:10.2]} 22. Rxf7 {[%clk 0:02:22.5]}
22... Rah8 {[%clk 0:01:01.9]} 23. Rf2 {[%clk 0:02:12.7]} 23... Rxg4+ {[%clk
0:00:59.3]} 24. Kf3 {[%clk 0:02:12.9]} 24... Rf8+ {[%clk 0:00:36.5]} 25. Ke2
{[%clk 0:02:04.6]} 25... Rxf2+ {[%clk 0:00:37.4]} 26. Kxf2 {[%clk 0:02:05.5]}
26... Bh4+ {[%clk 0:00:27.4]} 27. Kf3 {[%clk 0:02:04.7]} 27... Rg3+ {[%clk
0:00:24.9]} 28. Ke2 {[%clk 0:02:05.3]} 28... Rg2+ {[%clk 0:00:22.7]} 29. Kd3
{[%clk 0:02:05.7]} 29... c4+ {[%clk 0:00:21.6]} 30. Kc2 {[%clk 0:02:06.2]} 30...
Bg5 {[%clk 0:00:20.6]} 31. Re1 {[%clk 0:02:04.2]} 31... Ke6 {[%clk 0:00:19.1]}
32. Kd1 {[%clk 0:02:02.7]} 32... Kf5 {[%clk 0:00:18.1]} 33. Re2 {[%clk 0:02:02]}
33... Rxe2 {[%clk 0:00:17.3]} 34. Kxe2 {[%clk 0:02:02.9]} 34... Ke4 {[%clk
0:00:16.3]} 35. Be1 {[%clk 0:01:52.4]} 35... Be7 {[%clk 0:00:16.5]} 36. Bg3
{[%clk 0:01:41.6]} 36... b5 {[%clk 0:00:16.3]} 37. Bf4 {[%clk 0:01:32.8]} 37...
g5 {[%clk 0:00:15.7]} 38. Bg3 {[%clk 0:01:33]} 38... g4 {[%clk 0:00:16.2]} 39.
Bf4 {[%clk 0:01:31.3]} 39... Bd8 {[%clk 0:00:11.7]} 40. Bh6 {[%clk 0:01:24.7]}
40... Be7 {[%clk 0:00:08.3]} 41. Bg7 {[%clk 0:01:23.3]} 41... Kf5 {[%clk
0:00:08.6]} 42. Kf2 {[%clk 0:01:13.6]} 42... a5 {[%clk 0:00:08.1]} 43. Kg3
{[%clk 0:01:12.4]} 43... Bg5 {[%clk 0:00:06.7]} 44. Kf2 {[%clk 0:01:04.7]} 44...
a4 {[%clk 0:00:06.3]} 45. a3 {[%clk 0:01:01.6]} 45... Bh4+ {[%clk 0:00:06]} 46.
Ke2 {[%clk 0:01:01.4]} 46... Bg5 {[%clk 0:00:06.4]} 47. Bf8 {[%clk 0:01:01.3]}
47... Bd8 {[%clk 0:00:05.9]} 48. Bh6 {[%clk 0:01:01.5]} 48... Bh4 {[%clk
0:00:05.6]} 49. Bf4 {[%clk 0:00:59.7]} 49... Be7 {[%clk 0:00:05.3]} 50. Kf2
{[%clk 0:00:59.9]} 50... Bh4+ {[%clk 0:00:04.8]} 51. Kg2 {[%clk 0:01:00.1]}
51... Be7 {[%clk 0:00:04.7]} 52. Kg3 {[%clk 0:01:00.2]} 52... Ke4 {[%clk
0:00:04]} 53. Kxg4 {[%clk 0:01:00.4]} 53... b4 {[%clk 0:00:04.4]} 54. axb4
{[%clk 0:00:57.7]} 54... Bxb4 {[%clk 0:00:04.5]} 55. cxb4 {[%clk 0:00:53.5]}
55... a3 {[%clk 0:00:04.5]} 56. bxa3 {[%clk 0:00:50.3]} 56... c3 {[%clk
0:00:04.8]} 57. e6 {[%clk 0:00:51]} 57... c2 {[%clk 0:00:05.4]} 58. e7 {[%clk
0:00:51.6]} 58... c1=Q {[%clk 0:00:06]} 59. e8=Q+ {[%clk 0:00:52.4]} 59... Kd3
{[%clk 0:00:06.8]} 60. Qg6+ {[%clk 0:00:52]} 60... Kc4 {[%clk 0:00:06.8]} 61.
Qc6+ {[%clk 0:00:52.5]} 1-0

[Event "Early-Titled-Tuesday-Blitz-April-16-2024"]
[Site "Chess.com"]
[Date "2024.04.16"]
[Round "6"]
[White "Makswolf200817"]
[Black "Dixit_Nikhil"]
[Result "0-1"]
[WhiteElo "2776"]
[BlackElo "2621"]
[TimeControl "180+1"]
[EndTime "9:08:24 PDT"]
[Termination "Dixit_Nikhil won by resignation"]

1. e4 {[%clk 0:03:00.9]} 1... c5 {[%clk 0:02:58.5]} 2. Nf3 {[%clk 0:03:00.5]}
2... Nc6 {[%clk 0:02:59.2]} 3. d4 {[%clk 0:02:58.8]} 3... cxd4 {[%clk
0:03:00.1]} 4. Nxd4 {[%clk 0:02:59.5]} 4... Nf6 {[%clk 0:03:00.8]} 5. Nc3 {[%clk
0:02:59.6]} 5... e5 {[%clk 0:03:01]} 6. Ndb5 {[%clk 0:03:00.1]} 6... d6 {[%clk
0:03:00.4]} 7. Bg5 {[%clk 0:02:59.9]} 7... a6 {[%clk 0:03:00.6]} 8. Na3 {[%clk
0:03:00.5]} 8... b5 {[%clk 0:03:00.5]} 9. Bxf6 {[%clk 0:03:01.2]} 9... gxf6
{[%clk 0:03:00.7]} 10. Nd5 {[%clk 0:03:00.7]} 10... Bg7 {[%clk 0:03:01.2]} 11.
Bd3 {[%clk 0:02:59.4]} 11... Ne7 {[%clk 0:03:01.5]} 12. Nxe7 {[%clk 0:02:37.8]}
12... Qxe7 {[%clk 0:03:02.4]} 13. c4 {[%clk 0:02:29.5]} 13... O-O {[%clk
0:02:58.7]} 14. cxb5 {[%clk 0:02:25.8]} 14... f5 {[%clk 0:02:59]} 15. O-O {[%clk
0:02:21]} 15... d5 {[%clk 0:02:57]} 16. exd5 {[%clk 0:02:16.2]} 16... e4 {[%clk
0:02:54.8]} 17. Be2 {[%clk 0:02:15.5]} 17... Bxb2 {[%clk 0:02:38.7]} 18. Nc4
{[%clk 0:02:01.7]} 18... Bxa1 {[%clk 0:02:33.8]} 19. Qxa1 {[%clk 0:02:02.3]}
19... axb5 {[%clk 0:02:34.4]} 20. d6 {[%clk 0:01:56.5]} 20... Qg5 {[%clk
0:02:31.3]} 21. Nb6 {[%clk 0:01:54.4]} 21... f4 {[%clk 0:02:10.9]} 22. Rd1
{[%clk 0:01:43.1]} 22... f3 {[%clk 0:01:51.4]} 23. Bf1 {[%clk 0:01:43.3]} 23...
Bh3 {[%clk 0:01:31.7]} 24. g3 {[%clk 0:01:27.2]} 24... Bxf1 {[%clk 0:01:28.4]}
25. Nxa8 {[%clk 0:01:02.4]} 25... e3 {[%clk 0:01:08.4]} 26. Nb6 {[%clk
0:00:38.5]} 26... Be2 {[%clk 0:00:45.2]} 27. Rd5 {[%clk 0:00:32.4]} 27... Qh6
{[%clk 0:00:35]} 28. Nd7 {[%clk 0:00:26.3]} 28... exf2+ {[%clk 0:00:33.3]} 29.
Kxf2 {[%clk 0:00:27.2]} 29... Qxh2+ {[%clk 0:00:31.5]} 30. Ke3 {[%clk
0:00:26.9]} 30... Re8+ {[%clk 0:00:28.8]} 31. Kf4 {[%clk 0:00:23.6]} 31... f5
{[%clk 0:00:14.5]} 32. Rxf5 {[%clk 0:00:15.3]} 32... Qh6+ {[%clk 0:00:09.1]} 33.
Rg5+ {[%clk 0:00:10.5]} 33... Kf7 {[%clk 0:00:09.6]} 34. Ne5+ {[%clk 0:00:09.7]}
34... Ke6 {[%clk 0:00:04]} 35. d7 {[%clk 0:00:05]} 35... Rf8+ {[%clk 0:00:04.5]}
36. Ke4 {[%clk 0:00:03]} 36... Qxg5 {[%clk 0:00:04.4]} 37. Qd4 {[%clk
0:00:02.4]} 37... Qf5+ {[%clk 0:00:04.7]} 0-1